Cogmind - Beta 15 *** ADVENTURER MODE // 2025.08.22 @ 23:17:33 Player: erkyp3rky Result: Destroyed by Y-54 Guardian with Flak Gun Performance ------------- Evolutions (4) 2000 Regions Visited (9) 1800 Robots Destroyed (170) 850 Value Destroyed (6701) 6701 Prototype IDs (10) 200 Alien Tech Used (0) 0 Bonus (2593) 2593 TOTAL SCORE: 14144 Bonus ------- High Alert Combat Kills 142 Follower Combat Kills 1361 Network Hubs Disabled 200 Met Zhirov 300 A7 Reached Mainframe 300 Met R17 at Cetus 500 Friendly Fire -210 Cogmind --------- Core Integrity 0/850 Matter 103/300 Energy 100/100 System Corruption 15% Temperature Cool (0) Movement Walking (330) Ox3 Location -6/Hub_04(d) Parts ------- > --- POWER (2) -------- (None) > --- PROPULSION (4) --- Carbon-fiber Leg > --- UTILITY (7) ------ High-capacity Storage Unit Targeting Computer Armor Integrity Analyzer Weapon Cycler > --- WEAPON (2) ------- Flak Cannon > --- INVENTORY (20) --- Advanced Heat Sink High-capacity Matter Pod (200) Improved Sensor Array Improved Signal Interpreter Improved Terrain Scan Processor Centrium Medium Armor Plating Improved Shield Generator Trap Extractor (0/4) Plasma Rifle Advanced Variable Charge Gun Neutron Cannon Flak Gun Flak Gun Mini Assault Cannon Shock Bomb Launcher Datajack Heavy Mace Peak State ------------ > --- POWER ------------ Light Angular Momentum Engine Quantum Reactor > --- PROPULSION ------- Carbon-fiber Leg Flexi-carbon Leg Flexi-carbon Leg Flexi-carbon Leg > --- UTILITY ---------- Improved Cooling System High-capacity Storage Unit Improved Trap Scanner Improved Signal Interpreter Armor Integrity Analyzer Weapon Cycler Centrium Medium Armor Plating > --- WEAPON ----------- Advanced KE Penetrator Advanced KE Penetrator > --- INVENTORY -------- Advanced Heat Sink High-capacity Matter Pod Improved Terrain Scan Processor Improved Medium Armor Plating Improved Shield Generator Trap Extractor Heavy Laser Heavy Laser Gatling Laser Plasma Rifle Flak Gun Flak Cannon Mini Assault Cannon Bore Cannon Shock Bomb Launcher Heavy Missile Launcher Datajack Heavy Mace [Rating: 84] Favorites ----------- Power Fission Core Engine Light Angular Momentum Engine Power Core Fission Core Reactor Quantum Reactor Propulsion Titanium Leg Treads Light Treads Leg Titanium Leg Hover Unit Backup Propulsion I Utility High-capacity Storage Unit Device Weapon Cycler Storage High-capacity Storage Unit Processor Improved Signal Interpreter Protection Hardened Medium Armor Plating Weapon Mini Assault Cannon Energy Gun Medium Laser Energy Cannon Beam Cannon Ballistic Gun Flak Gun Ballistic Cannon Mini Assault Cannon Launcher Shock Bomb Launcher Special Weapon Welding Torch Impact Weapon Heavy Mace Special Melee Weapon Datajack Build | -11 -10 -9 -8 -7 -6 -6 -6 -6 -6 ------- Run | Yrd Mat Mat Mat Fac Fac Ext Cet Arc Hub Slots Evolved 8 | . . 2 2 2 2 . . . . Power 1 | . . . . . 1 . . . . Propulsion 2 | . . . 2 . . . . . . Utility 5 | . . 2 . 2 1 . . . . Weapon . | . . . . . . . . . . Parts Attached 144 | 7 1 23 20 16 15 42 10 . 10 Power 20 | 1 . 2 3 2 1 8 1 . 2 Engine 11 | 1 . 2 3 1 . 2 . . 2 Core 8 | . . . . 1 1 6 . . . Reactor 1 | . . . . . . . 1 . . Propulsion 43 | 2 . 5 6 2 4 16 2 . 6 Treads 2 | 2 . . . . . . . . . Leg 41 | . . 5 6 2 4 16 2 . 6 Wheel . | . . . . . . . . . . Hover . | . . . . . . . . . . Flight . | . . . . . . . . . . Utility 44 | 2 . 9 3 8 5 11 4 . 2 Device 18 | 1 . 3 1 2 3 8 . . . Storage 4 | 1 . 1 1 . . . 1 . . Processor 7 | . . 1 . 3 . 1 2 . . Hackware . | . . . . . . . . . . Protection 15 | . . 4 1 3 2 2 1 . 2 Artifact . | . . . . . . . . . . Weapon 37 | 2 1 7 8 4 5 7 3 . . Energy Gun 8 | 2 1 . 2 . . 3 . . . Energy Cannon 1 | . . 1 . . . . . . . Ballistic Gun 14 | . . 4 2 1 3 1 3 . . Ballistic Cannon 5 | . . . 1 1 1 2 . . . Launcher 6 | . . 1 2 2 1 . . . . Special Weapon 1 | . . . . . . 1 . . . Impact Weapon 1 | . . . 1 . . . . . . Slashing Weapon . | . . . . . . . . . . Piercing Weapon . | . . . . . . . . . . Special Melee Weapon 1 | . . 1 . . . . . . . Unidentified Prototypes 9 | . . . 4 1 . . 4 . . Corrupted Parts 2 | . . . . . . . 2 . . System Corruption 9 | . . . . . . . 9 . . Parts Lost 35 | . . . . 1 4 13 . 2 15 Power 8 | . . . . . . 4 . . 4 Propulsion 6 | . . . . . . . . 2 4 Utility 17 | . . . . 1 4 8 . . 4 Weapon 4 | . . . . . . 1 . . 3 Highest Loss Streak 11 | . . . . 1 2 3 . 2 11 To Critical Strikes . | . . . . . . . . . . Average Backups 11 | . 2 6 10 15 12 12 17 19 19 Power . | . . . . 1 . . . . . Propulsion . | . . . . 3 1 . . . . Utility 4 | . 1 3 3 4 4 3 6 7 8 Weapon 6 | . . 1 5 5 6 7 10 11 9 Tool/Special . | . . . . . . . . . . Unused Backups 30 | . 2 2 8 3 . 5 . . 10 Power 4 | . . . . . . 4 . . . Propulsion 3 | . 2 . . . . 1 . . . Utility 10 | . . 2 2 1 . . . . 5 Weapon 13 | . . . 6 2 . . . . 5 Tool/Special . | . . . . . . . . . . Average Slot Usage (%) 97 | . 98 99 99 98 99 97 100 95 88 Engine 5 | . 14 11 8 5 6 1 6 6 7 Core 4 | . . . . 1 6 10 . . . Treads 2 | . 27 7 . . . . . . . Leg 24 | . . 13 35 30 26 26 26 21 20 Device 19 | . 14 20 17 17 22 21 17 13 12 Storage 7 | . 14 11 9 7 6 6 6 6 6 Processor 10 | . . 8 9 13 13 8 15 20 20 Protection 4 | . . 4 . 4 3 6 6 6 6 Energy Gun 1 | . 27 1 . . . . . . . Ballistic Gun 8 | . . 18 15 8 7 3 9 13 7 Ballistic Cannon 3 | . . . . 3 1 7 1 . 4 Peak Build Rating 84 | 7 7 19 32 46 57 66 84 81 72 Average Rating 45 | 5 6 14 27 39 54 60 78 77 61 On Entrance 38 | . 7 7 19 32 45 57 64 81 71 Naked Turns . | . . . . . . . . . . Heaviest Build 97 | 14 14 34 64 75 79 89 97 91 91 Greatest Support 83 | 40 40 40 68 68 68 75 83 83 73 Greatest Overweight (x) 4 | . 4 1 1 1 1 1 1 2 3 Average Overweight (x) . | . . . . . . . 1 1 1 Largest Inventory Capacity 20 | 8 8 10 20 20 20 20 20 20 20 Average Capacity 17 | 7 8 8 19 20 20 20 20 20 20 Most Carried 20 | . 4 10 15 17 16 17 19 19 20 Average Carried 12 | . 2 6 10 15 12 13 17 19 19 Final Capacity 20 | 8 8 10 20 20 20 20 20 20 20 Final Carried 19 | . 4 9 15 17 12 16 19 19 17 Class Distribution -------------------- 47% | Scavenger-Mutant 38% | Mutant 6% | Skirmisher 5% | Commander-Mutant Dominant Class ---------------- Mutant | -10/Materials Mutant | -9/Materials Mutant | -8/Materials Mutant | -7/Factory Mutant | -6/Factory Scavenger-Mutant | -6/Extension Scavenger-Mutant | -6/Cetus Scavenger-Mutant | -6/Archives Scavenger-Mutant | -6/Hub_04(d) Resources | -11 -10 -9 -8 -7 -6 -6 -6 -6 -6 ----------- Run | Yrd Mat Mat Mat Fac Fac Ext Cet Arc Hub Matter Collected 6106 | 209 121 500 862 704 450 2343 325 . 592 Remotely 955 | . . . . . . 955 . . . Salvage Created 6733 | 29 171 722 978 792 655 1326 385 233 1442 Parts 278 | 5 7 38 54 24 25 46 11 10 58 Haulers Intercepted 5 | . . 1 4 . . . . . . Recyclers Shooed 12 | 1 2 1 . 2 2 4 . . . Parts Field Recycled . | . . . . . . . . . . Retrieved Matter . | . . . . . . . . . . Parts Self-Destructed . | . . . . . . . . . . Prevented . | . . . . . . . . . . Kills | -11 -10 -9 -8 -7 -6 -6 -6 -6 -6 ------- Run | Yrd Mat Mat Mat Fac Fac Ext Cet Arc Hub Combat Hostiles Destroyed 137 | . 6 19 20 12 12 28 6 4 30 Melee 1 | . . . . 1 . . . . . Guns 70 | . 6 11 18 2 8 10 1 4 10 Cannons 29 | . . 2 . 4 1 13 1 . 8 AOE 34 | . . 6 1 3 3 5 4 . 12 Classes Destroyed 14 | 1 2 4 1 2 . 3 . . 1 Worker 6 | . . . . 1 . 2 . . 3 Builder 5 | . . . . . . 4 . . 1 Tunneler 2 | 1 . . . . . 1 . . . Hauler 5 | . . 1 4 . . . . . . Recycler 10 | . . . 1 4 1 3 . . 1 Watcher 4 | . . 1 1 . . . 1 . 1 Swarmer 25 | . 3 1 8 3 4 3 . . 3 Cutter 2 | . . . . . . . . . 2 Grunt 72 | . 3 13 9 4 4 13 3 4 19 Brawler 4 | . . 1 . . 1 1 . . 1 Sentry 22 | . . 4 3 3 1 7 . . 4 Hunter 2 | . . . . . . 1 . . 1 Programmer 5 | . . . . 2 2 1 . . . Behemoth 2 | . . . . . . 2 . . . Cetus Guard 3 | . . . . . . . 3 . . Savage 1 | . . . . . . 1 . . . Best Kill Streak 12 | 1 3 7 5 5 8 6 3 4 12 Combat Bots Only 9 | . 3 7 5 3 8 3 3 4 9 Max Kills in Single Turn 7 | 1 2 2 2 2 2 4 3 2 7 Gunslinging 1 | . 1 . 1 . . . . . . Exploded 5 | . . 2 1 2 2 2 3 . 5 Melee 1 | . . . . 1 . . . . . Uniques/NPCs Destroyed . | . . . . . . . . . . Combat | -11 -10 -9 -8 -7 -6 -6 -6 -6 -6 -------- Run | Yrd Mat Mat Mat Fac Fac Ext Cet Arc Hub Hostile Shots Fired 1315 | . 34 103 73 165 134 427 2 20 357 Missed 462 | . 9 31 17 61 57 138 1 6 142 Hits 853 | . 25 72 56 104 77 289 1 14 215 Melee 13 | . . 1 . . 6 . . . 6 Projectile 840 | . 25 71 56 104 71 289 1 14 209 Critical Strikes 15 | . . . 3 3 1 3 1 . 4 Damage Taken 9578 | . 193 851 546 880 1004 2792 94 1145 2073 Core 1138 | . 51 82 94 60 101 403 22 109 216 Absorbed by Shields 45 | . . . . . . . 45 . . Ignored by Resistances 2800 | . 64 248 163 265 276 832 36 293 623 Regen/Repaired (Parts) 225 | . . 125 100 . . . . . . Core Remaining (%) 86 | 100 79 79 82 91 . . . . . Volleys Fired 428 | 2 22 63 56 28 33 145 16 9 54 Largest 2 | 2 2 2 2 2 2 2 2 2 2 Hottest 149 | 90 90 110 66 65 65 149 84 70 83 Shots Fired 785 | 4 44 122 108 50 60 262 25 18 92 Gun 520 | 4 44 109 103 25 51 101 11 18 54 Cannon 201 | . . 8 1 19 3 136 5 . 29 Launcher 61 | . . 5 4 6 6 22 9 . 9 Special 3 | . . . . . . 3 . . . Kinetic 636 | . . 101 104 44 54 216 16 18 83 Thermal 88 | 4 44 16 . . . 24 . . . Explosive 31 | . . 5 . 2 2 10 3 . 9 Electromagnetic 30 | . . . 4 4 4 12 6 . . Robot Hit Streak 31 | 3 20 16 31 13 12 25 8 10 20 Robot Miss Streak 9 | 1 2 2 2 3 2 9 3 2 2 Penetration Max 1 | . . . . . 1 1 1 1 1 Secondary Targets 8 | . 1 1 3 . 1 2 . . . Max Gunslinging Chain 1 | . 1 1 1 . 1 1 . . . Shots Hit Robots 583 | 3 35 102 89 57 40 165 9 13 70 Core Hits 432 | 2 10 48 43 20 32 169 18 8 82 Critical Kills 17 | . . . 1 . . 6 1 1 8 Critical Parts Destroyed 35 | . . 1 2 4 1 12 4 2 9 Critical Strikes 63 | . 2 2 3 5 1 24 5 3 18 Burn 3 | . 2 1 . . . . . . . Destroy 52 | . . 1 3 . 1 21 5 3 18 Blast 4 | . . . . 1 . 3 . . . Smash 4 | . . . . 4 . . . . . Melee Attacks 69 | . . 1 4 32 9 23 . . . Impact 66 | . . . 3 32 9 22 . . . Slashing . | . . . . . . . . . . Piercing . | . . . . . . . . . . Sneak Attacks 8 | . . 1 2 4 1 . . . . Combat Hostiles 1 | . . . 1 . . . . . . Follow-up Attacks . | . . . . . . . . . . Damage Inflicted 17939 | 35 406 1603 1507 1923 1430 5061 1187 408 4379 Guns 7954 | 35 406 940 1309 321 921 1910 379 408 1325 Cannons 3464 | . . 143 20 442 37 2316 65 . 441 Explosions 5488 | . . 520 100 318 361 835 743 . 2611 Melee 1021 | . . . 78 841 102 . . . . Ramming 12 | . . . . 1 9 . . . 2 Kinetic 10715 | . . 839 1329 763 958 4208 444 408 1766 Thermal 1052 | 35 406 244 . . . 18 349 . . Explosive 3714 | . . 520 . 251 222 835 254 . 1632 Electromagnetic 1425 | . . . 100 67 139 . 140 . 979 Impact 1021 | . . . 78 841 102 . . . . Slashing . | . . . . . . . . . . Piercing . | . . . . . . . . . . Highest Corruption 15 | . . . . 2 4 5 14 14 15 Average Corruption 5 | . . . . 1 3 4 12 14 14 Corruption Purged . | . . . . . . . . . . Corruption Blocked . | . . . . . . . . . . Effects 158 | . . . . 8 6 79 30 10 25 Message Errors 45 | . . . . 4 2 21 9 3 6 Matter Fused 39 | . . . . 1 2 20 9 4 3 Heat Flow Errors 16 | . . . . 3 . 7 2 1 3 Energy Discharges 18 | . . . . . 1 11 1 . 5 Parts Rejected 1 | . . . . . . . 1 . . Data Loss (minor) 13 | . . . . . 1 8 3 . 1 Data Loss (major) 5 | . . . . . . 5 . . . Misfires 8 | . . . . . . 5 2 . 1 Alerts 1 | . . . . . . . 1 . . Misdirections 2 | . . . . . . . . 2 . Weapon Failures 10 | . . . . . . 2 2 . 6 Overload Shots . | . . . . . . . . . . Overflow Damage 546 | . . . 28 377 32 50 25 . 34 Projectiles 55 | . . . . 22 . 33 . . . Explosions 81 | . . . . 5 . 17 25 . 34 Melee 410 | . . . 28 350 32 . . . . Knockbacks 29 | . . . 1 11 3 11 . . 3 Impact 6 | . . . 1 4 1 . . . . Kinetic 21 | . . . . 5 2 11 . . 3 Secondary 2 | . . . . 2 . . . . . Self-Inflicted Damage 313 | . . 122 . 7 . 10 . . 174 Shots 14 | . . 4 . 3 . 1 . . 6 Rammed . | . . . . . . . . . . Targets Rammed 3 | . . . . 1 1 . . . 1 Kicked 3 | . . . . 1 1 . . . 1 Crushed . | . . . . . . . . . . Highest Temperature 344 | 60 322 207 106 283 344 262 237 215 227 Average Temperature 80 | 31 110 49 36 123 125 55 53 111 56 Received Heat Transfer 3551 | . 108 393 324 339 378 1085 . 75 849 Effects 5 | . 1 . . 1 3 . . . . Shutdowns 1 | . . . . . 1 . . . . Energy Bleed 3 | . 1 . . 1 1 . . . . Matter Decay 1 | . . . . . 1 . . . . Siege Activations . | . . . . . . . . . . Martial Activations . | . . . . . . . . . . Shielding Activations . | . . . . . . . . . . Robots Disrupted 1 | . . . . . . . 1 . . Combat Hostiles 1 | . . . . . . . 1 . . Robots Corrupted 7 | . . . 1 4 1 . . . 1 Combat Hostiles 3 | . . . 1 2 . . . . . Parts Fried 12 | . . . 2 7 2 . . . 1 Impact Corruptions 15 | . . . 1 12 2 . . . . Robots Melted . | . . . . . . . . . . Combat Hostiles . | . . . . . . . . . . Parts Melted 4 | . 2 2 . . . . . . . Heat Transferred 2241 | 99 1239 666 . . . 37 200 . . Parts Sabotaged . | . . . . . . . . . . Parts Stolen . | . . . . . . . . . . Parts Stripped . | . . . . . . . . . . Power Chain Reactions 8 | . . . 1 . . 5 2 . . Alert | -11 -10 -9 -8 -7 -6 -6 -6 -6 -6 ------- Run | Yrd Mat Mat Mat Fac Fac Ext Cet Arc Hub Maximum Alert Level 3 | . . 1 . . . 1 1 . 3 Low Security (%) 87 | 100 100 54 100 100 100 99 34 100 58 Level 1 11 | . . 45 . . . . 65 . 15 Level 2 1 | . . . . . . . . . 22 Level 3 . | . . . . . . . . . 3 Level 4 . | . . . . . . . . . . Level 5 . | . . . . . . . . . . High Security . | . . . . . . . . . . Max Security . | . . . . . . . . . . Peak Influence 855 | 5 70 310 117 120 196 212 325 168 855 Initial 75 | . . 6 46 18 9 55 60 75 22 Average 71 | . 22 138 52 38 61 32 205 94 224 Influence Increases 5559 | 5 174 624 617 427 354 1539 503 123 1193 Destroy 0b10 Robot/C 3300 | . 120 380 400 240 240 900 320 100 600 Destroy 0b10 Robot/NC 180 | 5 . 10 30 25 5 65 10 . 30 Destroy Leader 622 | . 20 114 90 70 50 126 30 . 122 Allied During Kill 194 | . . . . . . 105 79 10 . Trap Triggered on 0b10 40 | . . . 20 . . 20 . . . Successful Hack 90 | . 19 4 23 6 26 12 . . . Disable Machine 351 | . . 9 . 45 9 72 36 9 171 Destroy Structure 392 | . . 17 9 11 24 119 28 4 180 Lose Combat Pursuer 390 | . 15 90 45 30 . 120 . . 90 Influence Decreases 4734 | 5 157 511 700 452 245 1546 404 268 446 Entered New Map 481 | . . 11 84 29 13 76 64 148 56 Time Decay 3584 | 5 157 500 616 413 212 1081 320 80 200 Lost Part 260 | . . . . 10 20 60 . 20 150 Lost Ally 306 | . . . . . . 266 20 20 . Purge Threat 103 | . . . . . . 63 . . 40 Squads Dispatched 36 | . 1 6 3 6 2 6 3 . 9 Investigation 18 | . 1 4 1 2 1 4 3 . 2 Extermination 4 | . . . . 3 1 . . . . Reinforcement 11 | . . 2 1 1 . 2 . . 5 Assault . | . . . . . . . . . . Garrison 3 | . . . 1 . . . . . 2 Intercept . | . . . . . . . . . . Searches Triggered . | . . . . . . . . . . Construction Impeded 3 | . . . . . . 2 . . 1 Haulers Reinforced 2 | . . . . . . . . . 2 Active Scanning Responses . | . . . . . . . . . . Cargo Convoy Interrupts . | . . . . . . . . . . Stealth | -11 -10 -9 -8 -7 -6 -6 -6 -6 -6 --------- Run | Yrd Mat Mat Mat Fac Fac Ext Cet Arc Hub Distress Signals 17 | . 1 2 5 1 1 2 2 . 3 Communications Jammed . | . . . . . . . . . . Distress Signals . | . . . . . . . . . . Times Spotted 230 | . 9 28 29 15 12 56 13 19 49 Peak Tracking Total 20 | . 3 7 4 4 4 7 6 20 10 Tactical Retreats 19 | . 1 3 3 1 . 6 . . 5 Traps | -11 -10 -9 -8 -7 -6 -6 -6 -6 -6 ------- Run | Yrd Mat Mat Mat Fac Fac Ext Cet Arc Hub Traps Triggered 10 | . 2 2 2 . 1 3 . . . Indirectly . | . . . . . . . . . . Trap Hack Attempts 142 | . . 97 17 . . 28 . . . Triggered . | . . . . . . . . . . Disarmed 1 | . . . 1 . . . . . . Reprogrammed 11 | . . 4 3 . . 4 . . . Reused 4 | . . . 2 . . 2 . . . Traps Extracted 11 | . . 4 3 . . 4 . . . Installed 10 | . . . 7 . . 3 . . . Triggered 4 | . . . 2 . . 2 . . . Most Traps Carried 4 | . . 4 4 . . 4 . . . Machines | -11 -10 -9 -8 -7 -6 -6 -6 -6 -6 ---------- Run | Yrd Mat Mat Mat Fac Fac Ext Cet Arc Hub Machines Disabled 41 | . . 1 . 5 1 9 5 1 19 Max in Single Turn 13 | . . 1 . 2 1 2 1 1 13 Network Hub 1 | . . . . . . . . . 1 Machines Repaired . | . . . . . . . . . . Machines Dismantled . | . . . . . . . . . . Machines Sabotaged . | . . . . . . . . . . Overloaded Fab Kills . | . . . . . . . . . . Hacking | -11 -10 -9 -8 -7 -6 -6 -6 -6 -6 --------- Run | Yrd Mat Mat Mat Fac Fac Ext Cet Arc Hub Machines Accessed 40 | . 3 6 7 4 4 10 3 . 3 Terminals 31 | . 3 3 4 4 2 10 3 . 2 Fabricators 1 | . . . . . 1 . . . . Repair Stations 4 | . . 2 2 . . . . . . Recycling Units 1 | . . . . . 1 . . . . Scanalyzers 1 | . . 1 . . . . . . . Garrison Access 2 | . . . 1 . . . . . 1 Total Hacks 113 | . 15 17 22 14 8 20 10 . 7 Successful 50 | . 6 12 15 5 5 5 1 . 1 Failed 63 | . 9 5 7 9 3 15 9 . 6 Catastrophic 13 | . 1 1 . 1 1 3 4 . 2 Database Lockouts . | . . . . . . . . . . Manual 51 | . 14 6 15 8 4 3 1 . . Terminals 93 | . 15 8 17 14 4 20 10 . 5 Fabricators 1 | . . . . . 1 . . . . Repair Stations 9 | . . 5 4 . . . . . . Recycling Units 3 | . . . . . 3 . . . . Scanalyzers 4 | . . 4 . . . . . . . Garrison Access 3 | . . . 1 . . . . . 2 Terminal Hacks 22 | . 4 1 6 3 1 5 1 . 1 Record 1 | . . . . . . . 1 . . Part Schematic 1 | . . . 1 . . . . . . Robot Analysis 5 | . 3 . 2 . . . . . . Prototype ID Bank 1 | . . . 1 . . . . . . Open Door 5 | . . . . . 1 4 . . . Level Access Points 2 | . . . 1 1 . . . . . Branch Access Points 1 | . . . . 1 . . . . . Emergency Access Points 1 | . 1 . . . . . . . . Alert Level 3 | . . 1 1 1 . . . . . Unreport Threat 2 | . . . . . . 1 . . 1 Fabricator Hacks . | . . . . . . . . . . Repair Station Hacks 9 | . . 5 4 . . . . . . Scan Component 4 | . . 2 2 . . . . . . Repair 4 | . . 2 2 . . . . . . Refit 1 | . . 1 . . . . . . . Recycling Unit Hacks 2 | . . . . . 2 . . . . Report Inventory 1 | . . . . . 1 . . . . Retrieve Components 1 | . . . . . 1 . . . . Scanalyzer 4 | . . 4 . . . . . . . Insert Component 2 | . . 2 . . . . . . . Analyze 2 | . . 2 . . . . . . . Garrison Access Hacks . | . . . . . . . . . . Unauthorized Hacks 13 | . 2 2 5 2 2 . . . . Terminals 10 | . 2 2 4 2 . . . . . Botnet 10 | . 2 2 4 2 . . . . . Fabricators 1 | . . . . . 1 . . . . Fabnet 1 | . . . . . 1 . . . . Repair Stations . | . . . . . . . . . . Recycling Units 1 | . . . . . 1 . . . . Monitor 1 | . . . . . 1 . . . . Scanalyzers . | . . . . . . . . . . Garrison Access 1 | . . . 1 . . . . . . Watchers 1 | . . . 1 . . . . . . Data Cores Recovered . | . . . . . . . . . . Used . | . . . . . . . . . . Hacking Detections 33 | . 3 4 5 4 4 7 3 . 3 Full Trace Events 16 | . 1 2 1 2 1 4 3 . 2 Feedback Events 2 | . . . . 1 . . . . 1 Corruption 2 | . . . . 1 . . . . 1 Feedback Blocked . | . . . . . . . . . . Robot Schematics Acquired . | . . . . . . . . . . Robots Built . | . . . . . . . . . . Authchips . | . . . . . . . . . . Time . | . . . . . . . . . . Total Robot Build Rating . | . . . . . . . . . . Part Schematics Acquired 3 | . . 2 1 . . . . . . Parts Built . | . . . . . . . . . . Authchips . | . . . . . . . . . . Time . | . . . . . . . . . . Total Part Build Rating . | . . . . . . . . . . Parts Repaired 4 | . . 2 2 . . . . . . Time 128 | . . 58 70 . . . . . . Parts Recycled . | . . . . . . . . . . Recycled Matter . | . . . . . . . . . . Retrieved Matter . | . . . . . . . . . . Retrieved Components 2 | . . . . . 2 . . . . Parts Scanalyzed 2 | . . 2 . . . . . . . Part Schematics Acquired 2 | . . 2 . . . . . . . Parts Damaged . | . . . . . . . . . . Bothacking | -11 -10 -9 -8 -7 -6 -6 -6 -6 -6 ------------ Run | Yrd Mat Mat Mat Fac Fac Ext Cet Arc Hub Used RIF Installer . | . . . . . . . . . . Robots Hacked . | . . . . . . . . . . Non-combat . | . . . . . . . . . . Combat . | . . . . . . . . . . Robot Hacks Applied . | . . . . . . . . . . Relay Couplers Released . | . . . . . . . . . . Fabnet Peak Effective % . | . . . . . . . . . . Robots Rewired 15 | . . . . . . 15 . . . Allies Hacked . | . . . . . . . . . . Hacks Repelled . | . . . . . . . . . . Allies | -11 -10 -9 -8 -7 -6 -6 -6 -6 -6 -------- Run | Yrd Mat Mat Mat Fac Fac Ext Cet Arc Hub Total Allies 25 | . . . . . . 23 2 . . Largest Group 13 | . . . . . . 13 3 2 . Highest-Rated Group 351 | . . . . . . 349 351 248 . Highest-Rated Ally 159 | . . . . . . 159 159 159 . Total Orders . | . . . . . . . . . . Ally Attacks 184 | . . . . . . 112 60 12 . Total Damage 4620 | . . . . . . 2300 2063 257 . Kills 33 | . . . . . . 21 11 1 . Allies Corrupted . | . . . . . . . . . . Allies Melted . | . . . . . . . . . . Intel | -11 -10 -9 -8 -7 -6 -6 -6 -6 -6 ------- Run | Yrd Mat Mat Mat Fac Fac Ext Cet Arc Hub Active Infowar (turns) 5743 | 25 481 1204 1188 1177 384 882 402 . . Sensors 693 | . . . . 384 309 . . . . Terrain 3952 | . . 1203 1188 1177 384 . . . . Structural 1053 | . . 501 . . . 552 . . . Traps 785 | . . . . . . 383 402 . . Seismic 596 | 25 481 90 . . . . . . . Robot Analysis Total 5 | . 3 . 2 . . . . . . Derelict Logs Recovered . | . . . . . . . . . . Drone Launches . | . . . . . . . . . . Drone Recoveries . | . . . . . . . . . . Exploration | -11 -10 -9 -8 -7 -6 -6 -6 -6 -6 ------------- Run | Yrd Mat Mat Mat Fac Fac Ext Cet Arc Hub Turns Passed 9571 | 69 481 1204 1297 1177 593 3518 646 160 426 Spaces Moved 3901 | 35 248 499 518 462 239 1416 301 64 119 Core 4 | 2 2 . . . . . . . . Treads 484 | 33 246 205 . . . . . . . Legs 3413 | . . 294 518 462 239 1416 301 64 119 Wheels . | . . . . . . . . . . Hover . | . . . . . . . . . . Flight . | . . . . . . . . . . Fastest Speed 50 | 50 160 120 127 130 130 120 190 190 190 Average Speed 180 | 153 160 153 174 194 183 186 190 217 200 Slowest Speed 330 | 160 250 195 200 200 200 195 190 260 330 Overloaded Moves . | . . . . . . . . . . Propulsion Burnouts . | . . . . . . . . . . Robots Hopped . | . . . . . . . . . . Potential Cave-ins . | . . . . . . . . . . Cave-ins Triggered . | . . . . . . . . . . Exploration Rate (%) 44 | 3 39 54 50 14 8 78 84 87 27 Regions Visited 9 Branch Regions 4 Pre-discovered Areas . | . . . . . . . . . . Known Exits Taken 4 | . . . 1 1 1 1 . . . Unknown Exits Taken 5 | 1 1 1 . . . . 1 1 . Scrap Searched . | . . . . . . . . . . Spaces Dug 65 | . . . 1 7 19 38 . . . Terrain Destroyed 490 | . . 24 7 11 25 177 21 1 224 Melee 14 | . . . 1 7 6 . . . . Projectile 58 | . . . . 2 . 35 1 1 19 AOE 418 | . . 24 6 2 19 142 20 . 205 Terrain Rammed . | . . . . . . . . . . Walls Destroyed . | . . . . . . . . . . Machines Disabled . | . . . . . . . . . . Actions | -11 -10 -9 -8 -7 -6 -6 -6 -6 -6 --------- Run | Yrd Mat Mat Mat Fac Fac Ext Cet Arc Hub Total 5630 | 43 286 830 817 639 322 2042 352 72 227 Wait 424 | . 2 104 128 62 8 89 1 . 30 Move 3892 | 34 247 498 517 461 238 1415 300 63 119 Hop . | . . . . . . . . . . Pick Up 78 | . 6 14 20 12 1 18 4 . 3 Fast Attach 118 | 7 6 15 21 8 7 34 12 . 8 Attach 25 | . . 4 2 3 5 7 . . 4 Detach 11 | . . 2 1 1 1 4 2 . . Swap 97 | . . 10 18 16 12 32 5 . 4 Drop 129 | . 3 22 26 15 7 40 12 . 4 Fire 428 | 2 22 63 56 28 33 145 16 9 54 Melee 69 | . . 1 4 32 9 23 . . . Ram . | . . . . . . . . . . Kick 3 | . . . . 1 1 . . . 1 Crush . | . . . . . . . . . . Escape Stasis 20 | . . . . . . 20 . . . Rewire 184 | . . . . . . 184 . . . Trap 152 | . . 97 24 . . 31 . . . Miscellaneous . | . . . . . . . . . . Route ------- -11/Scrapyard -10/Materials (discovered 2 exits: *Mat / [*Min]) -9/Materials (discovered 2 exits: *Mat / [*Min]) -8/Materials (discovered 3 exits: *Fac x3) -7/Factory (discovered 6 exits: *Fac x4 / Low x2) -6/Factory (discovered 2 exits: *Fac / *Ext) -6/Extension (discovered 3 exits: *Fac x2 / *Cet) -6/Cetus (discovered 2 exits: *Fac / *Arc) -6/Archives -6/Hub_04(d) (discovered 3 exits: *Fac x3) History --------- Turn | Location | Event 6 | -11/Scrapyard | Discovered new exit (range 15) 70 | -11/Scrapyard | Entered Materials 308 | -10/Materials | Build established: Mutant 345 | -10/Materials | Discovered new exit (range 15) 475 | -10/Materials | Discovered new exit (range 15) 551 | -10/Materials | Entered another Materials area 551 | -9/Materials | Evolved 2 slots: Utility x2 720 | -9/Materials | Repaired Lgt. Treads 996 | -9/Materials | Discovered new exit (range 12) 1107 | -9/Materials | Destroyed 7 combat bots 1372 | -9/Materials | Repaired Mni. Grenade Launcher 1740 | -9/Materials | Discovered new exit (range 8) 1755 | -9/Materials | Entered another Materials area 1755 | -8/Materials | Evolved 2 slots: Propulsion x2 2391 | -8/Materials | Repaired Titanium Leg 2398 | -8/Materials | Garrison activated, responded to threat 2672 | -8/Materials | Repaired Autogun 2798 | -8/Materials | Identified exit to Factory 3052 | -8/Materials | Entered Factory 3052 | -7/Factory | Evolved 2 slots: Utility x2 3699 | -7/Factory | Identified exit to Lower Caves 3953 | -7/Factory | Identified exit to Factory 4169 | -7/Factory | Build established: Skirmisher 4229 | -7/Factory | Entered another Factory area 4229 | -6/Factory | Evolved 2 slots: Power x1, Utility x1 4477 | -6/Factory | Discovered new exit (range 13) 4507 | -6/Factory | Identified exit to Factory 4512 | -6/Factory | Discovered new exit (range 14) 4660 | -6/Factory | Destroyed 8 combat bots 4818 | -6/Factory | Identified exit to Extension 4822 | -6/Factory | Entered Extension 4841 | -6/Extension | Build established: Mutant 5196 | -6/Extension | Build established: Scavenger-Mutant 5297 | -6/Extension | Disrupted transfer network 5507 | -6/Extension | Build established: Commander-Mutant 5665 | -6/Extension | Rescued a captive Derelict 5695 | -6/Extension | Rescued a captive Derelict 5768 | -6/Extension | Lost 14 allies 5792 | -6/Extension | Spotted B-75 Beast 5808 | -6/Extension | Spotted B-75 Beast 5853 | -6/Extension | Destroyed B-75 Beast 5871 | -6/Extension | Lost 3 parts (1p2u) 5911 | -6/Extension | Core integrity fell below 50% 5923 | -6/Extension | Destroyed B-75 Beast 6007 | -6/Extension | Build established: Scavenger-Mutant 6060 | -6/Extension | Discovered exit to Factory (range 3) 6121 | -6/Extension | Rescued a captive Derelict 7455 | -6/Extension | Rescued a captive Derelict 7547 | -6/Extension | Rescued a captive Derelict 7548 | -6/Extension | Rescued a captive Derelict 7878 | -6/Extension | Rescued a captive Derelict 7878 | -6/Extension | Rescued a captive Derelict 8084 | -6/Extension | Lost 3 allies 8100 | -6/Extension | Discovered exit to Factory (range 10) 8102 | -6/Extension | Discovered new exit (range 6) 8145 | -6/Extension | Identified exit to Cetus 8250 | -6/Extension | Rescued A7 8340 | -6/Extension | Entered Cetus 8340 | -6/Cetus | Accompanied by 1 ally (A7) 8345 | -6/Cetus | Acquired a Cetus Manufacturing Module code from A7 8364 | -6/Cetus | Spotted Cetus Guard 8364 | -6/Cetus | Spotted Cetus Guard 8371 | -6/Cetus | Destroyed Cetus Guard 8374 | -6/Cetus | Destroyed Cetus Guard 8375 | -6/Cetus | Allies destroyed Cetus Guard 8376 | -6/Cetus | Spotted Cetus Guard 8379 | -6/Cetus | Allies destroyed Cetus Guard 8416 | -6/Cetus | System corruption reached 10% 8477 | -6/Cetus | Started Cetus Manufacturing Module 8502 | -6/Cetus | Manufactured an Enhanced Grunt 8527 | -6/Cetus | Manufactured an Enhanced Grunt 8546 | -6/Cetus | Cetus Manufacturing Module disabled 8654 | -6/Cetus | Escorted A7 to Cetus Mainframe 8779 | -6/Cetus | Discovered new exit (range 15) 8844 | -6/Cetus | Spotted Cetus Guard 8844 | -6/Cetus | Spotted Cetus Guard 8851 | -6/Cetus | Spotted Cetus Guard 8852 | -6/Cetus | Allies destroyed Cetus Guard 8852 | -6/Cetus | Spotted Cetus Guard 8868 | -6/Cetus | Destroyed Cetus Guard 8873 | -6/Cetus | Allies destroyed Cetus Guard 8875 | -6/Cetus | Allies destroyed Cetus Guard 8897 | -6/Cetus | Discovered exit to Factory (range 15) 8907 | -6/Cetus | Met Revision 17 8986 | -6/Cetus | Entered Archives 8986 | -6/Archives | Accompanied by 2 allies (A7) 8991 | -6/Archives | Received a hacking code to weaken MAIN.C 9013 | -6/Archives | Met Zhirov 9019 | -6/Archives | Reinforcements dispatched to Archives 9024 | -6/Archives | Unable to access archive contents 9064 | -6/Archives | Reinforcements dispatched to Archives 9066 | -6/Archives | Zhirov warped through subspace 9070 | -6/Archives | Discovered new exit (range 15) 9084 | -6/Archives | Zhirov detonated Archives 9146 | -6/Archives | Entered Hub_04(d) 9219 | -6/Hub_04(d) | Discovered exit to Factory (range 16) 9257 | -6/Hub_04(d) | Core integrity fell below 20% 9287 | -6/Hub_04(d) | Lost 3 parts (1p1n1w) 9392 | -6/Hub_04(d) | Garrison activated, responded to threat 9432 | -6/Hub_04(d) | Destroyed 9 combat bots 9510 | -6/Hub_04(d) | Discovered exit to Factory (range 13) 9510 | -6/Hub_04(d) | Discovered exit to Factory (range 12) 9537 | -6/Hub_04(d) | Garrison activated, responded to threat 9539 | -6/Hub_04(d) | Destroyed 7 combat bots 9559 | -6/Hub_04(d) | Network Hub disabled 9568 | -6/Hub_04(d) | Spotted Lightning 9569 | -6/Hub_04(d) | Spotted Lightning 9570 | -6/Hub_04(d) | Spotted Lightning 9572 | -6/Hub_04(d) | Destroyed by Y-54 Guardian with Flak Gun Last Messages --------------- 09559_ Network Hub explodes. 09559_ G-50 Soldier destroyed. 09559_ S-27 Virus destroyed. 09559_ K-01 Serf destroyed. 09559_ Imp. Cooling System destroyed. 09559_ Destroyed Imp. Cooling System. 09559_ G-50 Soldier destroyed. 09559_ S-27 Virus destroyed. 09559_ Door malfunctions. 09559_ Hvy. Missile Launcher destroyed. 09560_ R-10 Processor system terminally corrupted. 09560_ Hpw. Tractor Beam fried. 09563_ FL8RH9CZNQQVEOL22PJ4ZTGBA&EBGPR|P 09565_ Y-54 Guardian misfires. 09565_ G-50 Soldier misfires. 09570_ Imp. Medium Armor Plating destroyed. 09571_ Targeting Computer destroyed. 09571_ EMDS Slug penetrates Wall. [Achievement: Overachiever] Map ----- +----------------------------------------------------+ | | | ????????????????????????????????????????? | | ????????????????????????????????????????? | | ????????????????????????????????????????? | | ????????????????????????????????????????? | | ????????????????????????????????????????? | | ????????????????????????????????????????? | | ???????????????? ???????????????????????? | | ???????????????# ??????????????????????? | | ??????????? ??# ??????????????????????? | | ????????? !# ;????#+#???????????????? | | ???????? ! # ;???? ????????????????? | | ??????? / ???? ????????????????? | | ?????? # ;####;####?????????????? | | ????? ] ; ; # #?????????????? | | ????? ; ; # !#??#??"???????? | | ????##;;;;;;;;;;;;;; #? # "???????? | | ????# ; ;; # ?????????? | | ????# ; ; !; #??????????? | | ????# ; ; # # ????? | | ????# ; ;;;;;;;; ; ????? | | ????# ; [= ; ????" | | ????# ; %%k%* ; ???"" | | ????# ; *;!%;;;;; ; ?? | | ????# ; ; % ## %# ??? | | ????# ; [@ ;; %* # ####+####+ # | | ????# ; ;; ; #? | | ????# ; | [ ;; g Y##= ## | | ????# ;;;;;;;;;;;;; #??T######## # # | | ????# ; ; # Y #???## ""G"" | | ????## ;; ;;# YA#????# "" "" | | ?????########## !%######h###### % | | ??????????????#